[Event "Lidkoping Open 2019"]
[Site "Lidkoping"]
[Date "2019.08.24"]
[Round "1.4"]
[White "Ernst, Thomas"]
[Black "Karlsson, Roger"]
[Result "1-0"]
[ECO "B15"]
[WhiteElo "2329"]
[BlackElo "1892"]
[Annotator "ChessBase"]
[PlyCount "129"]
[EventDate "2019.08.19"]
[EventType "swiss"]
[EventCountry "SWE"]
[SourceTitle "playchess.com"]
[Source "ChessBase"]
[SourceQuality "1"]
[TimeControl "2700+10"]

1. e4 {[%emt 0:00:00]} c6 {[%emt 0:00:05]} 2. d4 {[%emt 0:00:00]} d5 {[%emt 0:00:04]} 3. Nd2 {[%emt 0:00:01]} dxe4 {[%emt 0:00:21]} 4. Nxe4 {[%emt 0:00:02]} Nf6 {[%emt 0:00:12]} 5. Nxf6+ {[%emt 0:00:04]} exf6 {[%emt 0:00:03]} 6. c3 {[%emt 0:00:09]} Bf5 {[%emt 0:01:26]} 7. Ne2 {[%emt 0:01:26]} Bd6 {[%emt 0:01:23]} 8. Bf4 {[%emt 0:00:05]} O-O {[%emt 0:01:09]} 9. Bxd6 {[%emt 0:00:04]} Qxd6 {[%emt 0:00:03]} 10. Ng3 {[%emt 0:00:04]} Bg6 {[%emt 0:04:27]} 11. Be2 {[%emt 0:00:25]} Re8 {[%emt 0:00:53]} 12. O-O {[%emt 0:00:23]} Nd7 {[%emt 0:00:29]} 13. Bf3 {[%emt 0:02:28]} Nb6 {[%emt 0:07:43]} 14. Re1 {[%emt 0:02:55]} h6 {[%emt 0:04:29]} 15. Ne4 {[%emt 0:03:51]} Qc7 {[%emt 0:04:16]} 16. Nc5 {[%emt 0:00:17]} Nd7 {[%emt 0:03:48]} 17. Nxd7 {[%emt 0:01:39]} Qxd7 {[%emt 0:00:02]} 18. Qd2 {[%emt 0:00:09]} Qf5 {[%emt 0:02:33]} 19. h3 {[%emt 0:00:41]} Bh5 {[%emt 0:01:00]} 20. Bxh5 {[%emt 0:00:27]} Qxh5 {[%emt 0:00:02]} 21. c4 {[%emt 0:00:30]} Qf5 {[%emt 0:02:12]} 22. d5 {[%emt 0:03:58]} cxd5 {[%emt 0:03:09]} 23. cxd5 {[%emt 0:00:29]} Rad8 {[%emt 0:01:40]} 24. Rxe8+ {[%emt 0:01:27]} Rxe8 {[%emt 0:00:02]} 25. d6 {[%emt 0:00:08]} Rd8 {[%emt 0:01:12]} 26. Re1 {[%emt 0:03:08]} Qd7 {[%emt 0:00:44]} 27. Re7 {[%emt 0:04:22]} Qc6 {[%emt 0:00:43]} 28. d7 {[%emt 0:00:16]} Kf8 {[%emt 0:01:21]} 29. Qe3 {[%emt 0:02:20]} g5 {[%emt 0:01:21]} 30. g3 {[%emt 0:01:17]} Rxd7 {[%emt 0:00:31]} 31. Rxd7 {[%emt 0:00:08]} Qxd7 {[%emt 0:00:02]} 32. Qxa7 {[%emt 0:00:11]} Qd1+ {[%emt 0:00:42]} 33. Kg2 {[%emt 0:00:28]} Qd5+ {[%emt 0:00:11]} 34. Kh2 {[%emt 0:00:06]} h5 {[%emt 0:00:23]} 35. a4 {[%emt 0:03:17]} Kg7 {[%emt 0:00:11]} 36. Qb6 {[%emt 0:00:50]} h4 {[%emt 0:00:11]} 37. gxh4 {[%emt 0:01:13]} Qe5+ {[%emt 0:00:17]} 38. Kg2 {[%emt 0:00:08]} Qe4+ {[%emt 0:00:01]} 39. f3 {[%emt 0:00:14]} Qc2+ {[%emt 0:00:20]} 40. Kg3 {[%emt 0:00:59]} gxh4+ {[%emt 0:01:09]} 41. Kxh4 {[%emt 0:00:40]} Qxa4+ {[%emt 0:00:21]} 42. Kg3 {[%emt 0:00:12]} Qd7 {[%emt 0:00:11]} 43. Qb4 {[%emt 0:01:03]} Qd5 {[%emt 0:00:03]} 44. Qg4+ {[%emt 0:00:34]} Kh6 {[%emt 0:00:27]} 45. Qh4+ {[%emt 0:00:31]} Kg7 {[%emt 0:00:02]} 46. Qe4 {[%emt 0:00:23]} Qb5 {[%emt 0:00:27]} 47. b4 {[%emt 0:00:43]} Qb6 {[%emt 0:00:03]} 48. Kh4 {[%emt 0:00:53]} f5 {[%emt 0:00:07]} 49. Qe5+ {[%emt 0:01:24]} f6 {[%emt 0:00:01]} 50. Qxf5 {[%emt 0:01:14]} Qxb4+ {[%emt 0:00:04]} 51. Kh5 {[%emt 0:00:11]} Qe7 {[%emt 0:00:23]} 52. Qg4+ {[%emt 0:00:37]} Kf8 {[%emt 0:00:06]} 53. Kh6 {[%emt 0:00:46]} Qe3+ {[%emt 0:00:27]} 54. f4 {[%emt 0:00:07]} Qe7 {[%emt 0:00:06]} 55. h4 {[%emt 0:00:44]} b5 {[%emt 0:00:01]} 56. h5 {[%emt 0:00:16]} b4 {[%emt 0:00:02]} 57. Qc8+ {[%emt 0:00:12]} Kf7 {[%emt 0:00:07]} 58. Kh7 {[%emt 0:00:41]} Qf8 {[%emt 0:00:23]} 59. Qc4+ {[%emt 0:00:36]} Ke8 {[%emt 0:00:02]} 60. Kg6 {[%emt 0:00:14]} Qe7 {[%emt 0:00:30]} 61. Qc8+ {[%emt 0:00:31]} Qd8 {[%emt 0:00:05]} 62. Qxd8+ {[%emt 0:00:08]} Kxd8 {[%emt 0:00:08]} 63. h6 {[%emt 0:00:05]} b3 {[%emt 0:00:04]} 64. h7 {[%emt 0:00:03]} b2 {[%emt 0:00:03]} 65. h8=Q+ {[%emt 0:00:03]} 1-0

[Event "Lidkoping Open 2019"]
[Site "Lidkoping"]
[Date "2019.08.24"]
[Round "1.5"]
[White "Frisk, Anders"]
[Black "Svensson, Bengt"]
[Result "0-1"]
[ECO "A34"]
[WhiteElo "1776"]
[BlackElo "2310"]
[Annotator "RC"]
[PlyCount "58"]
[EventDate "2019.08.19"]
[EventType "swiss"]
[EventCountry "SWE"]
[SourceTitle "playchess.com"]
[Source "ChessBase"]
[SourceQuality "1"]
[TimeControl "2700+10"]

1. c4 {[%emt 0:00:00]} c5 {[%emt 0:00:02]} 2. Nc3 {[%emt 0:00:00]} Nc6 {[%emt 0:00:24]} 3. g3 {[%emt 0:00:11]} Nf6 {[%emt 0:01:15]} 4. Bg2 {[%emt 0:00:27]} e6 {[%emt 0:00:05]} 5. Nf3 {[%emt 0:02:42]} d5 {[%emt 0:00:46]} 6. cxd5 {[%emt 0:00:42]} Nxd5 {[%emt 0:00:10]} 7. O-O {[%emt 0:01:50]} Be7 {[%emt 0:00:05]} 8. d3 {[%emt 0:02:15]} O-O {[%emt 0:00:37]} 9. Bd2 {[%emt 0:02:58]} b6 {[%emt 0:01:57]} 10. a3 {[%emt 0:02:42]} Bb7 {[%emt 0:00:49]} 11. Qc2 {[%emt 0:04:47]} Rc8 {[%emt 0:02:41]} 12. e3 {[%emt 0:05:33]} Qd7 {[%emt 0:03:29]} 13. Rfd1 {[%emt 0:01:41]} Rfd8 {[%emt 0:00:46]} 14. Ne2 {[%emt 0:04:22]} Bf6 {[%emt 0:02:25]} 15. Bc3 {[%emt 0:02:23]} Nxc3 {[%emt 0:01:49]} 16. bxc3 {[%emt 0:02:07]} Na5 {[%emt 0:01:48]} 17. Rab1 {[%emt 0:02:13]} Bc6 {[%emt 0:01:57]} 18. Rd2 {[%emt 0:02:39]} Bxf3 {[%emt 0:03:24]} 19. Bxf3 {[%emt 0:00:30]} Nc4 {[%emt 0:00:07]} 20. Rdd1 {[%emt 0:02:29]} Nxa3 {[%emt 0:00:16]} 21. Qb2 {[%emt 0:00:22]} Nxb1 {[%emt 0:00:04]} 22. Qxb1 {[%emt 0:00:07]} b5 {[%emt 0:03:17]} 23. Qa2 {[%emt 0:01:45]} Rb8 {[%emt 0:01:22]} 24. d4 {[%emt 0:02:11]} b4 {[%emt 0:00:59]} 25. Qb3 {[%emt 0:00:55]} bxc3 {[%emt 0:01:18]} 26. Qxc3 {[%emt 0:00:09]} cxd4 {[%emt 0:00:13]} 27. Nxd4 {[%emt 0:00:28]} Qa4 {[%emt 0:01:19]} 28. Rd2 {[%emt 0:00:32]} Qb4 {[%emt 0:01:04]} 29. Qc2 {[%emt 0:00:33]} e5 {[%emt 0:02:23]} 0-1

[Event "Lidkoping Open 2019"]
[Site "Lidkoping"]
[Date "2019.08.24"]
[Round "1.6"]
[White "Andersson, Fredrik"]
[Black "Andersson, Kjell-Ake"]
[Result "1-0"]
[ECO "D12"]
[WhiteElo "2264"]
[BlackElo "1922"]
[Annotator "ChessBase"]
[PlyCount "55"]
[EventDate "2019.08.19"]
[EventType "swiss"]
[EventCountry "SWE"]
[SourceTitle "playchess.com"]
[Source "ChessBase"]
[SourceQuality "1"]
[TimeControl "2700+10"]

1. d4 {[%emt 0:00:00]} d5 {[%emt 0:00:09]} 2. c4 {[%emt 0:00:00]} c6 {[%emt 0:00:04]} 3. Nf3 {[%emt 0:00:06]} Nf6 {[%emt 0:00:04]} 4. e3 {[%emt 0:00:15]} Bf5 {[%emt 0:00:39]} 5. Nc3 {[%emt 0:00:05]} e6 {[%emt 0:00:12]} 6. Nh4 {[%emt 0:00:28]} Bg6 {[%emt 0:00:16]} 7. Qb3 {[%emt 0:01:17]} Qb6 {[%emt 0:04:12]} 8. Nxg6 {[%emt 0:00:25]} hxg6 {[%emt 0:00:03]} 9. Bd2 {[%emt 0:00:07]} Nbd7 {[%emt 0:00:12]} 10. g3 {[%emt 0:00:44]} Be7 {[%emt 0:01:55]} 11. Bg2 {[%emt 0:01:37]} O-O {[%emt 0:01:27]} 12. cxd5 {[%emt 0:04:34]} cxd5 {[%emt 0:04:46]} 13. O-O {[%emt 0:00:10]} Rfc8 {[%emt 0:01:01]} 14. Rfc1 {[%emt 0:00:09]} Qd8 {[%emt 0:05:29]} 15. Bf1 {[%emt 0:03:54]} Nb6 {[%emt 0:02:35]} 16. Nb5 {[%emt 0:02:30]} Ne4 {[%emt 0:04:23]} 17. Ba5 {[%emt 0:01:38]} Qd7 {[%emt 0:03:13]} 18. Rxc8+ {[%emt 0:06:02]} Nxc8 {[%emt 0:03:30]} 19. Nc7 {[%emt 0:07:25]} Rb8 {[%emt 0:00:41]} 20. Na6 {[%emt 0:00:06]} Bd6 {[%emt 0:03:10]} 21. Nxb8 {[%emt 0:00:50]} Bxb8 {[%emt 0:00:02]} 22. Rc1 {[%emt 0:01:51]} Ncd6 {[%emt 0:01:09]} 23. Be1 {[%emt 0:01:06]} Ng5 {[%emt 0:01:02]} 24. Bg2 {[%emt 0:01:03]} Nge4 {[%emt 0:00:54]} 25. Qc2 {[%emt 0:00:33]} Nf6 {[%emt 0:00:31]} 26. Bb4 {[%emt 0:00:11]} Nfe8 {[%emt 0:00:41]} 27. Bf1 {[%emt 0:00:10]} Nf5 {[%emt 0:01:33]} 28. Qc8 {[%emt 0:00:35]} 1-0

[Event "Lidkoping Open 2019"]
[Site "Lidkoping"]
[Date "2019.08.24"]
[Round "1.7"]
[White "Alfven, Jorgen"]
[Black "Nygren, Kim"]
[Result "1/2-1/2"]
[ECO "A80"]
[WhiteElo "1871"]
[BlackElo "2171"]
[Annotator "ChessBase"]
[PlyCount "28"]
[EventDate "2019.08.19"]
[EventType "swiss"]
[EventCountry "SWE"]
[SourceTitle "playchess.com"]
[Source "ChessBase"]
[SourceQuality "1"]
[TimeControl "2700+10"]

1. d4 {[%emt 0:00:00]} f5 {[%emt 0:00:00]} 2. Nc3 {[%emt 0:00:09]} Nf6 {[%emt 0:00:00]} 3. Bg5 {[%emt 0:00:11]} d5 {[%emt 0:00:15]} 4. Bxf6 {[%emt 0:00:30]} exf6 {[%emt 0:00:09]} 5. e3 {[%emt 0:00:46]} Be7 {[%emt 0:00:23]} 6. Bd3 {[%emt 0:00:25]} O-O {[%emt 0:00:12]} 7. Qf3 {[%emt 0:01:11]} Be6 {[%emt 0:04:10]} 8. Bxf5 {[%emt 0:00:35]} Bf7 {[%emt 0:00:03]} 9. Nge2 {[%emt 0:00:28]} c5 {[%emt 0:00:38]} 10. Nf4 {[%emt 0:01:07]} cxd4 {[%emt 0:00:32]} 11. exd4 {[%emt 0:00:05]} Nc6 {[%emt 0:00:12]} 12. Ne6 {[%emt 0:01:50]} Qb6 {[%emt 0:01:32]} 13. Nxd5 {[%emt 0:06:48]} Qa5+ {[%emt 0:02:36]} 14. c3 {[%emt 0:04:02]} Rfe8 {[%emt 0:03:44]} 1/2-1/2

[Event "Lidkoping Open 2019"]
[Site "Lidkoping"]
[Date "2019.08.24"]
[Round "1.8"]
[White "Ronneland, Daniel"]
[Black "Lunde, Sigmund"]
[Result "0-1"]
[ECO "B94"]
[WhiteElo "2137"]
[BlackElo "1806"]
[Annotator "ChessBase"]
[PlyCount "84"]
[EventDate "2019.08.19"]
[EventType "swiss"]
[EventCountry "SWE"]
[SourceTitle "playchess.com"]
[Source "ChessBase"]
[SourceQuality "1"]
[TimeControl "2700+10"]

1. e4 {[%emt 0:00:00]} c5 {[%emt 0:00:42]} 2. Nf3 {[%emt 0:00:03]} d6 {[%emt 0:00:17]} 3. d4 {[%emt 0:00:04]} cxd4 {[%emt 0:00:09]} 4. Nxd4 {[%emt 0:00:05]} Nf6 {[%emt 0:00:09]} 5. Nc3 {[%emt 0:00:05]} a6 {[%emt 0:00:26]} 6. Bg5 {[%emt 0:01:17]} e5 {[%emt 0:01:17]} 7. Nb3 {[%emt 0:02:32]} Be7 {[%emt 0:00:32]} 8. Bxf6 {[%emt 0:02:00]} Bxf6 {[%emt 0:00:36]} 9. Nd5 {[%emt 0:00:12]} O-O {[%emt 0:01:11]} 10. Be2 {[%emt 0:03:09]} Nd7 {[%emt 0:01:20]} 11. O-O {[%emt 0:00:57]} Nb6 {[%emt 0:03:02]} 12. Nxf6+ {[%emt 0:04:00]} Qxf6 {[%emt 0:00:21]} 13. a4 {[%emt 0:01:35]} Bd7 {[%emt 0:02:31]} 14. Na5 {[%emt 0:04:05]} Nxa4 {[%emt 0:05:03]} 15. Nxb7 {[%emt 0:00:54]} Rfb8 {[%emt 0:02:12]} 16. Nxd6 {[%emt 0:00:45]} Rxb2 {[%emt 0:01:41]} 17. Ra3 {[%emt 0:06:49]} Qe7 {[%emt 0:03:09]} 18. Bc4 {[%emt 0:05:09]} Rb6 {[%emt 0:00:42]} 19. Nxf7 {[%emt 0:03:33]} Nb2 {[%emt 0:09:48]} 20. Nxe5+ {[%emt 0:03:42]} Be6 {[%emt 0:01:59]} 21. Qd4 {[%emt 0:02:11]} Nxc4 {[%emt 0:04:18]} 22. Nxc4 {[%emt 0:01:06]} Rc6 {[%emt 0:02:00]} 23. Na5 {[%emt 0:01:41]} Rxc2 {[%emt 0:00:26]} 24. Raa1 {[%emt 0:00:07]} Rd8 {[%emt 0:00:31]} 25. Qb6 {[%emt 0:00:51]} Rd6 {[%emt 0:00:55]} 26. Qb4 {[%emt 0:00:13]} Qc7 {[%emt 0:00:13]} 27. Rab1 {[%emt 0:00:29]} Ra2 {[%emt 0:00:55]} 28. Rbc1 {[%emt 0:00:23]} Qb6 {[%emt 0:00:44]} 29. Qxb6 {[%emt 0:00:22]} Rxb6 {[%emt 0:00:01]} 30. Nc4 {[%emt 0:00:05]} Rb4 {[%emt 0:00:04]} 31. Nd6 {[%emt 0:00:14]} Rd4 {[%emt 0:00:08]} 32. e5 {[%emt 0:00:08]} a5 {[%emt 0:00:19]} 33. Ra1 {[%emt 0:00:23]} Rdd2 {[%emt 0:00:05]} 34. Rxa2 {[%emt 0:00:05]} Rxa2 {[%emt 0:00:02]} 35. Rb1 {[%emt 0:00:09]} h6 {[%emt 0:00:08]} 36. h4 {[%emt 0:00:20]} a4 {[%emt 0:00:01]} 37. f4 {[%emt 0:00:10]} Bd5 {[%emt 0:00:05]} 38. h5 {[%emt 0:00:38]} Rxg2+ {[%emt 0:00:04]} 39. Kf1 {[%emt 0:00:02]} Rh2 {[%emt 0:00:04]} 40. Rb8+ {[%emt 0:00:14]} Kh7 {[%emt 0:00:05]} 41. Rb4 {[%emt 0:00:47]} a3 {[%emt 0:00:03]} 42. Ra4 {[%emt 0:00:07]} a2 {[%emt 0:03:42]} 0-1

[Event "Lidkoping Open 2019"]
[Site "Lidkoping"]
[Date "2019.08.24"]
[Round "1.9"]
[White "Andersen, Dag"]
[Black "Madebrink, Lars"]
[Result "0-1"]
[ECO "A13"]
[WhiteElo "1873"]
[BlackElo "2147"]
[Annotator "ChessBase"]
[PlyCount "70"]
[EventDate "2019.08.19"]
[EventType "swiss"]
[EventCountry "SWE"]
[SourceTitle "playchess.com"]
[Source "ChessBase"]
[SourceQuality "1"]
[TimeControl "2700+10"]

1. Nf3 {[%emt 0:00:00]} d5 {[%emt 0:00:00]} 2. c4 {[%emt 0:00:07]} e6 {[%emt 0:00:07]} 3. e3 {[%emt 0:00:05]} Nf6 {[%emt 0:00:05]} 4. b3 {[%emt 0:00:11]} c5 {[%emt 0:00:15]} 5. Bb2 {[%emt 0:00:08]} Nc6 {[%emt 0:00:02]} 6. cxd5 {[%emt 0:00:52]} exd5 {[%emt 0:00:14]} 7. a3 {[%emt 0:03:22]} Bd6 {[%emt 0:03:29]} 8. Qc2 {[%emt 0:01:38]} Qe7 {[%emt 0:01:19]} 9. Be2 {[%emt 0:00:52]} Bg4 {[%emt 0:00:51]} 10. O-O {[%emt 0:01:38]} O-O {[%emt 0:01:08]} 11. d4 {[%emt 0:02:07]} cxd4 {[%emt 0:02:01]} 12. Nxd4 {[%emt 0:01:07]} Bxe2 {[%emt 0:00:31]} 13. Qxe2 {[%emt 0:03:28]} Qe5 {[%emt 0:02:22]} 14. Nf3 {[%emt 0:00:52]} Qe7 {[%emt 0:03:16]} 15. Re1 {[%emt 0:02:08]} Rac8 {[%emt 0:00:17]} 16. Nbd2 {[%emt 0:01:06]} a5 {[%emt 0:00:28]} 17. Qb5 {[%emt 0:00:53]} Rfd8 {[%emt 0:00:34]} 18. Rec1 {[%emt 0:01:38]} Ne4 {[%emt 0:01:05]} 19. Qd3 {[%emt 0:01:39]} h6 {[%emt 0:04:54]} 20. g3 {[%emt 0:05:09]} Bb8 {[%emt 0:00:35]} 21. Rd1 {[%emt 0:01:34]} Ba7 {[%emt 0:00:17]} 22. Rac1 {[%emt 0:00:30]} f6 {[%emt 0:00:51]} 23. Nh4 {[%emt 0:00:37]} Ne5 {[%emt 0:04:27]} 24. Bxe5 {[%emt 0:01:45]} Qxe5 {[%emt 0:00:33]} 25. Ndf3 {[%emt 0:03:06]} Qe6 {[%emt 0:00:06]} 26. Rxc8 {[%emt 0:00:38]} Rxc8 {[%emt 0:00:01]} 27. Nd4 {[%emt 0:02:03]} Bxd4 {[%emt 0:01:17]} 28. exd4 {[%emt 0:00:25]} Rc3 {[%emt 0:01:19]} 29. Qb5 {[%emt 0:01:29]} Qc6 {[%emt 0:06:48]} 30. Qxa5 {[%emt 0:00:56]} Rc2 {[%emt 0:01:18]} 31. Qd8+ {[%emt 0:00:24]} Kh7 {[%emt 0:00:05]} 32. Qe7 {[%emt 0:01:54]} Rxf2 {[%emt 0:00:28]} 33. Qf7 {[%emt 0:00:29]} Rb2 {[%emt 0:01:28]} 34. Nf5 {[%emt 0:00:35]} Rg2+ {[%emt 0:00:39]} 35. Kf1 {[%emt 0:01:38]} Rf2+ {[%emt 0:00:05]} 0-1

[Event "Lidkoping Open 2019"]
[Site "Lidkoping"]
[Date "2019.08.24"]
[Round "1.10"]
[White "Ask, Josef"]
[Black "Bratic, Asim"]
[Result "1-0"]
[ECO "B22"]
[WhiteElo "2136"]
[BlackElo "1825"]
[Annotator "ChessBase"]
[PlyCount "46"]
[EventDate "2019.08.19"]
[EventType "swiss"]
[EventCountry "SWE"]
[SourceTitle "playchess.com"]
[Source "ChessBase"]
[SourceQuality "1"]
[TimeControl "2700+10"]

1. e4 {[%emt 0:00:00]} c5 {[%emt 0:00:00]} 2. d4 {[%emt 0:00:00]} cxd4 {[%emt 0:00:03]} 3. c3 {[%emt 0:00:01]} d6 {[%emt 0:00:52]} 4. cxd4 {[%emt 0:00:08]} Nf6 {[%emt 0:00:13]} 5. Nc3 {[%emt 0:00:07]} g6 {[%emt 0:00:42]} 6. f3 {[%emt 0:00:19]} Nc6 {[%emt 0:00:28]} 7. Be3 {[%emt 0:00:11]} Bg7 {[%emt 0:00:22]} 8. Qd2 {[%emt 0:00:11]} a6 {[%emt 0:01:51]} 9. Nge2 {[%emt 0:00:17]} b5 {[%emt 0:00:11]} 10. Bh6 {[%emt 0:00:12]} Bxh6 {[%emt 0:01:25]} 11. Qxh6 {[%emt 0:00:03]} Nb4 {[%emt 0:01:12]} 12. O-O-O {[%emt 0:00:23]} Bb7 {[%emt 0:01:28]} 13. Kb1 {[%emt 0:00:12]} Qb6 {[%emt 0:01:09]} 14. Nc1 {[%emt 0:01:12]} Rc8 {[%emt 0:00:08]} 15. Nb3 {[%emt 0:00:13]} Bc6 {[%emt 0:01:50]} 16. a3 {[%emt 0:00:38]} a5 {[%emt 0:00:20]} 17. axb4 {[%emt 0:00:27]} axb4 {[%emt 0:00:08]} 18. Na2 {[%emt 0:00:03]} Ra8 {[%emt 0:02:39]} 19. Nxb4 {[%emt 0:00:19]} Bxe4+ {[%emt 0:00:07]} 20. fxe4 {[%emt 0:00:07]} Nxe4 {[%emt 0:00:19]} 21. Qe3 {[%emt 0:00:46]} Nf6 {[%emt 0:00:56]} 22. Re1 {[%emt 0:00:41]} O-O {[%emt 0:00:17]} 23. d5 {[%emt 0:00:16]} Qd8 {[%emt 0:32:10]} 1-0

[Event "Lidkoping Open 2019"]
[Site "Lidkoping"]
[Date "2019.08.24"]
[Round "1.11"]
[White "Isacsson, Jorgen"]
[Black "Nordlund, Jim"]
[Result "1/2-1/2"]
[ECO "A53"]
[WhiteElo "1731"]
[BlackElo "2130"]
[Annotator "ChessBase"]
[PlyCount "67"]
[EventDate "2019.08.19"]
[EventType "swiss"]
[EventCountry "SWE"]
[SourceTitle "playchess.com"]
[Source "ChessBase"]
[SourceQuality "1"]
[TimeControl "2700+10"]

1. Nf3 {[%emt 0:00:00]} d6 {[%emt 0:00:00]} 2. d4 {[%emt 0:00:00]} Nf6 {[%emt 0:00:04]} 3. c4 {[%emt 0:01:17]} Nbd7 {[%emt 0:00:25]} 4. e4 {[%emt 0:00:20]} e5 {[%emt 0:00:18]} 5. dxe5 {[%emt 0:00:16]} dxe5 {[%emt 0:00:10]} 6. Qc2 {[%emt 0:06:22]} Bc5 {[%emt 0:01:45]} 7. Be2 {[%emt 0:01:46]} O-O {[%emt 0:00:25]} 8. O-O {[%emt 0:00:10]} c6 {[%emt 0:00:21]} 9. Nc3 {[%emt 0:02:21]} Re8 {[%emt 0:00:53]} 10. a3 {[%emt 0:01:13]} a5 {[%emt 0:00:32]} 11. Bg5 {[%emt 0:00:25]} h6 {[%emt 0:01:53]} 12. Bh4 {[%emt 0:00:06]} g5 {[%emt 0:00:21]} 13. Bg3 {[%emt 0:00:03]} Nh5 {[%emt 0:02:54]} 14. Rad1 {[%emt 0:00:37]} Nxg3 {[%emt 0:02:50]} 15. hxg3 {[%emt 0:00:04]} Qf6 {[%emt 0:02:01]} 16. Rd2 {[%emt 0:03:17]} Nf8 {[%emt 0:01:12]} 17. Na4 {[%emt 0:02:00]} Be7 {[%emt 0:00:17]} 18. Nb6 {[%emt 0:01:21]} Rb8 {[%emt 0:00:39]} 19. Nxc8 {[%emt 0:00:31]} Rbxc8 {[%emt 0:00:16]} 20. Qc3 {[%emt 0:00:59]} Bd8 {[%emt 0:02:15]} 21. Rfd1 {[%emt 0:00:31]} Bc7 {[%emt 0:00:17]} 22. b4 {[%emt 0:01:28]} axb4 {[%emt 0:00:32]} 23. axb4 {[%emt 0:00:06]} Rcd8 {[%emt 0:00:08]} 24. Qb2 {[%emt 0:03:28]} Ne6 {[%emt 0:03:06]} 25. Rxd8 {[%emt 0:01:17]} Rxd8 {[%emt 0:00:04]} 26. Rxd8+ {[%emt 0:00:30]} Qxd8 {[%emt 0:00:33]} 27. Nxe5 {[%emt 0:01:35]} Bxe5 {[%emt 0:01:54]} 28. Qxe5 {[%emt 0:00:04]} Qd2 {[%emt 0:01:40]} 29. Bg4 {[%emt 0:01:25]} Qc1+ {[%emt 0:06:07]} 30. Kh2 {[%emt 0:00:18]} Qxc4 {[%emt 0:00:03]} 31. Qb8+ {[%emt 0:00:50]} Kg7 {[%emt 0:00:32]} 32. Qe5+ {[%emt 0:02:25]} Kg8 {[%emt 0:01:24]} 33. Qb8+ {[%emt 0:00:14]} Kg7 {[%emt 0:01:15]} 34. Qxb7 {[%emt 0:13:21]} 1/2-1/2

[Event "Lidkoping Open 2019"]
[Site "Lidkoping"]
[Date "2019.08.24"]
[Round "1.12"]
[White "Friberg, Hans"]
[Black "Gedda, Peder"]
[Result "1-0"]
[ECO "A37"]
[WhiteElo "2129"]
[BlackElo "1786"]
[Annotator "ChessBase"]
[PlyCount "72"]
[EventDate "2019.08.19"]
[EventType "swiss"]
[EventCountry "SWE"]
[SourceTitle "playchess.com"]
[Source "ChessBase"]
[SourceQuality "1"]
[TimeControl "2700+10"]

1. Nf3 {[%emt 0:00:00]} a6 {[%emt 0:00:00]} 2. c4 {[%emt 0:00:11]} c5 {[%emt 0:00:16]} 3. Nc3 {[%emt 0:00:20]} g6 {[%emt 0:00:03]} 4. g3 {[%emt 0:01:51]} Bg7 {[%emt 0:00:04]} 5. Bg2 {[%emt 0:00:12]} Nc6 {[%emt 0:00:12]} 6. O-O {[%emt 0:00:08]} d6 {[%emt 0:00:20]} 7. Rb1 {[%emt 0:00:29]} Bd7 {[%emt 0:00:09]} 8. a3 {[%emt 0:00:26]} Rb8 {[%emt 0:00:03]} 9. b4 {[%emt 0:00:53]} cxb4 {[%emt 0:00:06]} 10. axb4 {[%emt 0:00:04]} b5 {[%emt 0:00:48]} 11. cxb5 {[%emt 0:00:18]} axb5 {[%emt 0:00:02]} 12. h3 {[%emt 0:04:48]} e6 {[%emt 0:02:21]} 13. d4 {[%emt 0:05:27]} Nge7 {[%emt 0:03:08]} 14. e4 {[%emt 0:07:26]} O-O {[%emt 0:00:18]} 15. Qd3 {[%emt 0:00:50]} f5 {[%emt 0:01:40]} 16. exf5 {[%emt 0:02:21]} Rxf5 {[%emt 0:01:26]} 17. g4 {[%emt 0:00:40]} Rxf3 {[%emt 0:00:35]} 18. Bxf3 {[%emt 0:01:13]} Nxd4 {[%emt 0:00:03]} 19. Bg2 {[%emt 0:01:01]} Qc7 {[%emt 0:04:13]} 20. Ne2 {[%emt 0:02:43]} Qc4 {[%emt 0:04:08]} 21. Qxc4 {[%emt 0:00:40]} bxc4 {[%emt 0:00:08]} 22. Nxd4 {[%emt 0:00:17]} Bxd4 {[%emt 0:00:06]} 23. Bf4 {[%emt 0:00:41]} e5 {[%emt 0:00:11]} 24. Bg5 {[%emt 0:00:07]} Kf7 {[%emt 0:00:54]} 25. Kh1 {[%emt 0:00:50]} Bb5 {[%emt 0:01:05]} 26. f4 {[%emt 0:01:29]} c3 {[%emt 0:00:14]} 27. fxe5+ {[%emt 0:00:03]} Bxf1 {[%emt 0:00:02]} 28. Rxf1+ {[%emt 0:00:09]} Nf5 {[%emt 0:01:37]} 29. Bd5+ {[%emt 0:01:21]} Ke8 {[%emt 0:00:14]} 30. gxf5 {[%emt 0:00:08]} Bxe5 {[%emt 0:07:20]} 31. f6 {[%emt 0:00:58]} Kd7 {[%emt 0:00:19]} 32. Bh6 {[%emt 0:01:51]} Bxf6 {[%emt 0:00:03]} 33. Rxf6 {[%emt 0:00:07]} Kc7 {[%emt 0:00:03]} 34. Rf7+ {[%emt 0:02:08]} Kb6 {[%emt 0:00:02]} 35. Rf1 {[%emt 0:03:19]} Kb5 {[%emt 0:00:21]} 36. Rc1 {[%emt 0:01:11]} Kxb4 {[%emt 0:00:17]} 1-0